[Event "1st Jeddah Young Masters 2024"]
[Site "Jeddah"]
[Date "2024.01.24"]
[Round "1.1"]
[White "Klimkowski, Jan"]
[Black "Murzin, Volodar"]
[Result "1-0"]
[ECO "B72"]
[WhiteElo "2531"]
[BlackElo "2635"]
[Annotator "RC"]
[PlyCount "97"]
[EventDate "2024.01.24"]
[EventType "tourn"]
[SourceTitle "playchess.com"]
[Source "ChessBase"]
[SourceQuality "1"]
[TimeControl "5400+30"]

1. e4 {[%emt 0:00:03]} c5 {[%emt 0:00:08]} 2. Nf3 {[%emt 0:00:06]} d6 {[%emt 0:00:06]} 3. d4 {[%emt 0:00:04]} cxd4 {[%emt 0:00:05]} 4. Nxd4 {[%emt 0:00:05]} Nf6 {[%emt 0:00:07]} 5. Nc3 {[%emt 0:00:07]} a6 {[%emt 0:00:04]} 6. Bd3 {[%emt 0:00:16]} g6 {[%emt 0:04:36]} 7. f3 {[%emt 0:00:26]} Bg7 {[%emt 0:11:47]} 8. Be3 {[%emt 0:00:34]} Nc6 {[%emt 0:00:29]} 9. Qd2 {[%emt 0:00:53]} h5 {[%emt 0:05:24]} 10. O-O-O {[%emt 0:03:41]} Bd7 {[%emt 0:05:08]} 11. Kb1 {[%emt 0:07:21]} Rc8 {[%emt 0:16:16]} 12. h3 {[%emt 0:10:32]} h4 {[%emt 0:08:31]} 13. f4 {[%emt 0:04:14]} Nh5 {[%emt 0:03:06]} 14. Nf3 {[%emt 0:08:18]} Qa5 {[%emt 0:09:12]} 15. Nd5 {[%emt 0:11:45]} Qxd2 {[%emt 0:11:55]} 16. Rxd2 {[%emt 0:00:30]} Bh6 {[%emt 0:05:30]} 17. Re1 {[%emt 0:03:46]} Be6 {[%emt 0:14:36]} 18. Nb6 {[%emt 0:02:14]} Bxf4 {[%emt 0:00:16]} 19. Nxc8 {[%emt 0:00:27]} Bxc8 {[%emt 0:00:02]} 20. Nxh4 {[%emt 0:03:13]} Bg3 {[%emt 0:01:22]} 21. Bf2 {[%emt 0:00:55]} Bf4 {[%emt 0:00:07]} 22. Rdd1 {[%emt 0:01:59]} Ne5 {[%emt 0:00:06]} 23. Rf1 {[%emt 0:04:31]} Bg3 {[%emt 0:01:17]} 24. Nf3 {[%emt 0:01:09]} Bf4 {[%emt 0:00:53]} 25. Nxe5 {[%emt 0:01:04]} Bxe5 {[%emt 0:00:02]} 26. Bc4 {[%emt 0:01:46]} f6 {[%emt 0:01:00]} 27. a4 {[%emt 0:02:06]} Nf4 {[%emt 0:00:30]} 28. Rg1 {[%emt 0:00:51]} Bd7 {[%emt 0:00:17]} 29. a5 {[%emt 0:00:17]} Bc6 {[%emt 0:00:20]} 30. Bd5 {[%emt 0:00:55]} f5 {[%emt 0:00:42]} 31. Bxc6+ {[%emt 0:01:27]} bxc6 {[%emt 0:00:01]} 32. exf5 {[%emt 0:00:41]} gxf5 {[%emt 0:00:02]} 33. Bg3 {[%emt 0:02:00]} Nd5 {[%emt 0:00:43]} 34. Bxe5 {[%emt 0:01:44]} dxe5 {[%emt 0:00:03]} 35. Rde1 {[%emt 0:05:49]} e4 {[%emt 0:00:05]} 36. Rgf1 {[%emt 0:01:01]} e6 {[%emt 0:00:27]} 37. Re2 {[%emt 0:02:22]} Kd7 {[%emt 0:01:39]} 38. g4 {[%emt 0:01:01]} Ne7 {[%emt 0:00:02]} 39. Rd1+ {[%emt 0:01:29]} Kc7 {[%emt 0:02:23]} 40. c4 {[%emt 0:03:35]} Ng6 {[%emt 0:00:23]} 41. gxf5 {[%emt 0:02:59]} exf5 {[%emt 0:00:01]} 42. Rg2 {[%emt 0:01:25]} Rh6 {[%emt 0:01:10]} 43. Rg5 {[%emt 0:02:37]} f4 {[%emt 0:00:34]} 44. Rf5 {[%emt 0:00:32]} Rh7 {[%emt 0:00:31]} 45. Rg1 {[%emt 0:00:57]} Nh4 {[%emt 0:00:25]} 46. Rxf4 {[%emt 0:00:09]} e3 {[%emt 0:00:01]} 47. Kc2 {[%emt 0:01:27]} Kd6 {[%emt 0:00:11]} 48. Kd3 {[%emt 0:00:19]} Ke5 {[%emt 0:00:26]} 49. Re4+ {[%emt 0:09:18]} 1-0

[Event "1st Jeddah Young Masters 2024"]
[Site "Jeddah"]
[Date "2024.01.24"]
[Round "1.2"]
[White "Seemann, Jakub"]
[Black "Francisco Guecamburu, Candela Be"]
[Result "1-0"]
[ECO "A50"]
[WhiteElo "2439"]
[BlackElo "2295"]
[Annotator "TA"]
[PlyCount "89"]
[EventDate "2024.01.24"]
[EventType "tourn"]
[SourceTitle "playchess.com"]
[Source "ChessBase"]
[SourceQuality "1"]
[TimeControl "5400+30"]

{[%evp 9,89,10,22,12,16,11,24,14,29,39,50,27,46,14,25,27,31,24,19,35,20,16,52,51,57,28,78,61,68,56,58,19,61,0,0,0,57,35,65,60,68,71,81,83,98,99,149,153,169,145,162,144,141,116,150,68,92,68,85,42,89,68,164,159,155,154,262,181,387,406,340,416,360,321,587,410,1143,1132,1300,1244,1059,1054]} 1. d4 {[%emt 0:00:07]} Nf6 {[%emt 0:00:08]} 2. c4 {[%emt 0:00:08]} e6 {[%emt 0:00:06]} 3. Bf4 {[%emt 0:00:13]} Bb4+ {[%emt 0:06:32]} 4. Nd2 {[%emt 0:00:12]} O-O {[%emt 0:01:35]} 5. a3 {[%emt 0:00:27]} Bxd2+ {[%emt 0:00:07]} 6. Qxd2 {[%emt 0:00:10]} b6 {[%emt 0:01:34]} 7. e3 {[%emt 0:10:11]} Bb7 {[%emt 0:02:45]} 8. Ne2 {[%emt 0:00:46] White has an edge.} d6 {[%emt 0:03:22]} 9. Nc3 {[%emt 0:07:15]} Nbd7 {[%emt 0:25:04]} 10. Bg3 {[%emt 0:12:02]} Nh5 {[%emt 0:08:34]} 11. d5 {[%emt 0:02:04]} e5 {[%emt 0:05:14]} 12. Be2 {[%emt 0:00:36]} Nxg3 {[%emt 0:04:23]} 13. hxg3 {[%emt 0:00:47]} a5 {[%emt 0:03:26]} 14. g4 {[%emt 0:02:02]} Nc5 {[%emt 0:03:18]} 15. Qc2 {[%emt 0:00:36][%csl Gh1][%cal Rc2h7] [#]} g6 {[%emt 0:00:40]} 16. O-O-O {[%emt 0:08:04]} Qe7 {[%emt 0:04:38]} 17. Kb1 {[%emt 0:06:42]} Kg7 {[%emt 0:04:03]} (17... Bc8 $11 {keeps the balance.}) 18. g3 $16 {[%emt 0:14:16]} h6 {[%emt 0:07:05]} 19. f3 {[%emt 0:05:25][%cal Bf2f3,Bf3f4,Bf4f5][%mdl 32]} Rh8 {[%emt 0:05:52]} 20. Rh4 {[%emt 0:02:08]} Bc8 {[%emt 0:02:26]} 21. e4 {[%emt 0:11:29]} (21. Rdh1 $14) 21... Bd7 $11 {[%emt 0:01:51]} 22. Rdh1 {[%emt 0:00:24]} Rh7 {[%emt 0:01:41]} (22... Qg5 $11) 23. f4 {[%emt 0:02:02]} Rah8 {[%emt 0:00:27]} 24. b4 {[%emt 0:04:23]} axb4 {[%emt 0:01:49]} 25. axb4 {[%emt 0:00:02]} Nb7 {[%emt 0:03:12]} 26. Qa2 {[%emt 0:04:07]} Qf6 {[%emt 0:01:36]} 27. f5 {[%emt 0:01:07]} g5 {[%emt 0:01:42] Black is weak on the light squares} (27... Rb8 $142) 28. R4h2 $16 {[%emt 0:00:16]} Qd8 {[%emt 0:00:11]} 29. Bd3 {[%emt 0:01:29]} Qb8 {[%emt 0:00:40]} 30. Qb3 {[%emt 0:01:53]} f6 {[%emt 0:00:15]} 31. Qd1 {[%emt 0:01:57]} Be8 {[%emt 0:00:12]} 32. Be2 {[%emt 0:00:45]} ({Better is} 32. Bc2 $16) 32... Nd8 $14 {[%emt 0:01:18]} 33. Qb3 {[%emt 0:01:51]} (33. Kc2 {with more complications.} c5 34. bxc5 bxc5 35. Qb1) 33... Kf8 {[%emt 0:00:35]} 34. Bf3 {[%emt 0:00:22]} Kg7 {[%emt 0:00:33]} (34... b5 $14 {is more appropriate.}) 35. Kb2 {[%emt 0:00:36] White has more active pieces. The black rooks are passive.} Nb7 {[%emt 0:00:07]} (35... b5 $14) 36. Qa3 {[%emt 0:00:23]} Kf8 {[%emt 0:00:46][%cal Bg7f8,Bf8e7,Be7d7][%mdl 32]} 37. Ra1 {[%emt 0:00:52] aiming for Qa8.} Nd8 {[%emt 0:00:39]} (37... Bd7 $16 {keeps fighting.} 38. Qa7 Ke7) 38. Kb3 {[%emt 0:00:42] Qa8 would now be deadly.} Qc8 $2 {[%emt 0:00:27]} (38... c5 {is a better defense.} 39. Qa8 Rb7 40. Qxb8 Rxb8) 39. Qa8 $18 {[%emt 0:00:33]} Qxa8 {[%emt 0:00:28]} 40. Rxa8 {[%emt 0:00:01]} Ke7 {[%emt 0:00:16]} 41. Rha2 {[%emt 0:00:06] [#] Black must now prevent R2a7.} h5 $2 {[%emt 0:00:50]} (41... Bd7 42. R8a7 Kf8) 42. gxh5 {[%emt 0:00:36]} Bxh5 {[%emt 0:00:31]} (42... Bd7 $142 43. R8a7 Kf8) 43. Bxh5 {[%emt 0:00:11] White is clearly winning.} Rxh5 {[%emt 0:00:05]} 44. R2a7 {[%emt 0:00:05]} Kd7 {[%emt 0:00:15]} 45. Nb5 {[%emt 0:00:07] Weighted Error Value: White=0.24 (precise) /Black=0.33.  Mistake:       	White=2     	Black=9      Inaccurate:     	White=6     	Black=3      OK:         	White=12    	Black=10} 1-0

[Event "1st Jeddah Young Masters 2024"]
[Site "Jeddah"]
[Date "2024.01.24"]
[Round "1.3"]
[White "Rey Martinez, Jaime"]
[Black "Pranav Vijay"]
[Result "0-1"]
[ECO "B10"]
[WhiteElo "2342"]
[BlackElo "2252"]
[Annotator "TA"]
[PlyCount "132"]
[EventDate "2024.01.24"]
[EventType "tourn"]
[SourceTitle "playchess.com"]
[Source "ChessBase"]
[SourceQuality "1"]
[TimeControl "5400+30"]

{[%evp 35,132,0,0,0,0,0,0,0,0,0,12,0,0,0,0,-22,-16,-32,-37,-23,-22,-25,-22,-23,-25,-14,-13,-14,-9,-12,0,-2,-6,-9,0,0,-2,-5,0,0,0,-2,0,-1,0,0,0,0,0,0,0,0,0,0,0,0,0,0,0,0,0,0,0,0,0,0,0,0,0,0,0,0,0,0,0,0,0,0,0,0,0,0,0,0,0,0,0,0,0,0,0,0,0,-62,-62,-60,-59,-29968,-4627]} 1. e4 {[%emt 0:00:06]} c6 {[%emt 0:00:09]} 2. Nf3 {[%emt 0:00:36]} d5 {[%emt 0:00:12]} 3. d3 {[%emt 0:00:42]} Bg4 {[%emt 0:00:34]} 4. h3 {[%emt 0:00:32]} Bxf3 {[%emt 0:00:13]} 5. Qxf3 {[%emt 0:00:06]} e6 {[%emt 0:00:07]} 6. g3 {[%emt 0:01:15]} Nd7 {[%emt 0:00:13]} 7. Bg2 {[%emt 0:01:45]} Bd6 {[%emt 0:00:57]} 8. Qe2 {[%emt 0:02:28]} Ne7 {[%emt 0:04:17]} 9. c3 {[%emt 0:03:32]} O-O {[%emt 0:04:24]} 10. Nd2 {[%emt 0:04:30]} e5 {[%emt 0:08:09]} 11. d4 {[%emt 0:07:12]} exd4 {[%emt 0:28:36]} 12. cxd4 {[%emt 0:00:05]} Qb6 {[%emt 0:01:44]} 13. Qd3 {[%emt 0:09:00]} dxe4 {[%emt 0:04:39]} 14. Nxe4 {[%emt 0:01:08]} Bb4+ {[%emt 0:00:10]} 15. Bd2 {[%emt 0:01:16]} Rad8 {[%emt 0:02:51]} 16. Bxb4 {[%emt 0:03:08]} Qxb4+ {[%emt 0:00:20]} 17. Qc3 {[%emt 0:00:06]} Qb5 {[%emt 0:02:08]} 18. a4 {[%emt 0:11:50]} Qa6 {[%emt 0:00:20]} 19. Bf1 $1 {[%emt 0:01:38]} b5 {[%emt 0:00:43]} 20. Be2 {[%emt 0:02:24]} Nd5 {[%emt 0:01:31]} 21. Qc2 {[%emt 0:14:44]} Qa5+ {[%emt 0:19:32]} 22. Kf1 {[%emt 0:05:34]} Qb6 {[%emt 0:04:46]} 23. Nc5 {[%emt 0:02:33]} Rfe8 {[%emt 0:06:36]} 24. Bf3 {[%emt 0:03:06]} Nxc5 {[%emt 0:03:01]} 25. Qxc5 {[%emt 0:02:18]} bxa4 {[%emt 0:02:47]} 26. Qxb6 {[%emt 0:02:32]} axb6 {[%emt 0:00:01]} 27. Rxa4 {[%emt 0:00:17]} b5 {[%emt 0:00:01]} 28. Ra7 {[%emt 0:06:50]} Nb4 {[%emt 0:00:20]} 29. Rc7 {[%emt 0:04:12]} Rxd4 {[%emt 0:01:10]} 30. Bxc6 {[%emt 0:00:28]} Nxc6 {[%emt 0:01:23]} 31. Rxc6 {[%emt 0:00:02]} Rd2 {[%emt 0:00:10]} 32. b3 {[%emt 0:00:47]} Rd3 {[%emt 0:00:18]} 33. b4 {[%emt 0:00:28]} Rb3 {[%emt 0:00:53]} 34. Kg2 {[%emt 0:00:55]} Rxb4 {[%emt 0:02:04]} 35. Ra1 {[%emt 0:02:26]} h5 {[%emt 0:01:14]} 36. Ra7 {[%emt 0:01:00]} h4 {[%emt 0:01:12]} 37. Rcc7 {[%emt 0:00:56]} Rf8 {[%emt 0:00:02]} 38. gxh4 {[%emt 0:01:13]} Rf4 {[%emt 0:00:40]} 39. Rcb7 {[%emt 0:02:49]} Rd8 {[%emt 0:00:55]} 40. Rxb5 {[%emt 0:02:41]} Rd2 {[%emt 0:00:01]} 41. Kg3 {[%emt 0:00:48]} Rfxf2 {[%emt 0:00:23]} 42. Ra8+ {[%emt 0:00:12]} Kh7 {[%emt 0:00:01]} 43. Rh5+ {[%emt 0:00:05]} Kg6 {[%emt 0:00:01]} 44. Rg5+ {[%emt 0:00:06]} Kf6 {[%emt 0:00:20]} 45. Ra6+ {[%emt 0:00:03]} Ke7 {[%emt 0:00:01]} 46. Ra7+ {[%emt 0:01:29]} Kd6 {[%emt 0:00:09]} 47. Ra6+ {[%emt 0:00:24]} Kc7 {[%emt 0:00:57]} 48. Ra7+ {[%emt 0:00:09]} Kc6 {[%emt 0:01:11]} 49. Ra6+ {[%emt 0:00:14]} (49. Rxg7 $2 Rg2+ 50. Kf4 Rxg7 $19) 49... Kb7 {[%emt 0:00:04]} 50. Ra3 {[%emt 0:00:03]} Kc6 {[%emt 0:02:21]} 51. Ra6+ {[%emt 0:00:32]} (51. Rxg7 $2 {loses.} Rg2+ 52. Kf3 Rxg7 $19) 51... Kc7 {[%emt 0:00:02]} 52. Ra7+ {[%emt 0:00:04]} Kb6 {[%emt 0:00:04]} 53. Ra3 {[%emt 0:00:02]} f6 {[%emt 0:00:39]} 54. Rg4 {[%emt 0:00:36]} Kc5 {[%emt 0:00:55]} 55. Rc3+ {[%emt 0:00:47]} Kd5 {[%emt 0:00:21]} 56. Rd3+ {[%emt 0:00:47]} Rxd3+ {[%emt 0:01:38]} 57. Kxf2 {[%emt 0:00:01]} f5 {[%emt 0:00:00]} 58. Rxg7 {[%emt 0:00:27]} Ke4 {[%emt 0:00:00]} 59. Rg3 {[%emt 0:02:42]} Rd2+ {[%emt 0:00:00]} 60. Kg1 {[%emt 0:00:54]} f4 {[%emt 0:00:00]} 61. Ra3 {[%emt 0:00:26]} f3 {[%emt 0:00:00]} 62. Ra8 {[%emt 0:00:45]} Rg2+ {[%emt 0:00:32]} 63. Kh1 {[%emt 0:00:34]} Rg7 {[%emt 0:00:44]} 64. h5 {[%emt 0:00:18]} ({White should try} 64. Kh2 $11) 64... f2 $15 {[%emt 0:00:30]} 65. Ra1 {[%emt 0:00:10]} Kf3 $1 {[%emt 0:00:45]} 66. h6 $2 {[%emt 0:00:19][%mdl 8192]} (66. Kh2 $15) 66... Re7 {[%emt 0:00:08]} (66... Ra7 $142 67. Rb1 Re7 68. Kh2 Re1 69. Rb3+ Ke4 70. Rb4+ Kd5 71. Rb5+ Kc4 72. Rf5 f1=Q (72... f1=N+ 73. Rxf1 Rxf1 74. h7 $19) (72... f1=R $2 73. h7 $19) 73. Rxf1 Rxf1 74. Kg3 Kd5 75. Kh4 Ke6 76. h7 Rf8 77. Kg5 Kf7 (77... Rh8 78. Kg6 $11) 78. Kf4 Kg6+ 79. Ke5 Rh8 (79... Kxh7 {is a self mate.} 80. Ke4 Kg6 81. Ke5 Rh8 82. Ke4 Rxh3 83. Kd5 Rh4 84. Ke5 Rg4 85. Ke6 Rg5 86. Ke7 Re5+ 87. Kd7 Kf7 88. Kd6 Kf6 89. Kc7 Re6 90. Kd7 Kf7 91. Kc8 Re7 92. Kd8 Ke6 93. Kc8 Kd6 94. Kd8 Re5 95. Kc8 Rb5 96. Kd8 Rb8#) 80. Kf4 Rxh7 (80... Kxh7 81. Kf5 Kg7 82. Kf4 Rxh3 83. Ke4 Rh4+ 84. Kf3 Kf7 85. Kg3 Re4 86. Kf3 Re5 87. Kg4 Kg6 88. Kf4 Kf6 89. Kg3 Kg5 90. Kf3 Re6 91. Kg3 Rf6 92. Kh3 Kf4 93. Kg2 Kg4 94. Kh1 Kh3 95. Kg1 Kg3 96. Kh1 Rf1#) 81. Ke4 Rxh3 82. Kf4 Kf6 83. Ke4 Rh4+ 84. Ke3 Kf5 85. Kd3 Ke5 86. Ke2 Ke4 87. Kd2 Rh3 88. Kc2 Kd4 89. Kd2 Rh2+ 90. Ke1 Ke4 91. Kf1 Ke3 92. Kg1 Rf2 93. Kh1 Kf3 94. Kg1 Kg3 95. Kh1 Rf1#) 0-1

[Event "1st Jeddah Young Masters 2024"]
[Site "Jeddah"]
[Date "2024.01.24"]
[Round "1.4"]
[White "Sadhwani, Raunak"]
[Black "Oro, Faustino"]
[Result "1-0"]
[ECO "C54"]
[WhiteElo "2654"]
[BlackElo "2357"]
[Annotator "RC"]
[PlyCount "103"]
[EventDate "2024.01.24"]
[EventType "tourn"]
[SourceTitle "playchess.com"]
[Source "ChessBase"]
[SourceQuality "1"]
[TimeControl "5400+30"]

1. e4 {[%emt 0:00:04]} e5 {[%emt 0:00:07]} 2. Nf3 {[%emt 0:00:06]} Nc6 {[%emt 0:00:01]} 3. Bc4 {[%emt 0:00:07]} Bc5 {[%emt 0:00:09]} 4. O-O {[%emt 0:00:11]} Nf6 {[%emt 0:00:06]} 5. d3 {[%emt 0:00:04]} O-O {[%emt 0:00:20]} 6. h3 {[%emt 0:00:31]} h6 {[%emt 0:00:56]} 7. Re1 {[%emt 0:00:23]} d6 {[%emt 0:00:35]} 8. c3 {[%emt 0:00:09]} a5 {[%emt 0:00:46]} 9. Nbd2 {[%emt 0:02:07]} Be6 {[%emt 0:01:56]} 10. b3 {[%emt 0:01:26]} Ba7 {[%emt 0:02:15]} 11. Nf1 {[%emt 0:12:19]} Bxc4 {[%emt 0:11:36]} 12. bxc4 {[%emt 0:00:22]} Ne7 {[%emt 0:00:11]} 13. Rb1 {[%emt 0:00:26]} Ng6 {[%emt 0:01:07]} 14. Ng3 {[%emt 0:00:37]} Re8 {[%emt 0:03:45]} 15. Nf5 {[%emt 0:14:07]} Qd7 {[%emt 0:11:41]} 16. Re2 {[%emt 0:02:28]} Bb6 {[%emt 0:09:52]} 17. Reb2 {[%emt 0:01:42]} Rad8 {[%emt 0:04:55]} 18. Rb5 {[%emt 0:00:53]} Kh7 {[%emt 0:09:08]} 19. g3 {[%emt 0:05:56]} Ne7 {[%emt 0:12:50]} 20. N3h4 {[%emt 0:00:33]} Qe6 {[%emt 0:03:51]} 21. Qf3 {[%emt 0:02:32]} Nxf5 {[%emt 0:01:54]} 22. Nxf5 {[%emt 0:00:28]} Nd7 {[%emt 0:01:31]} 23. Kg2 {[%emt 0:01:31]} Nf8 {[%emt 0:03:41]} 24. Ba3 {[%emt 0:02:23]} Nd7 {[%emt 0:03:15]} 25. Bc1 {[%emt 0:01:26]} Nf8 {[%emt 0:00:51]} 26. h4 {[%emt 0:01:03]} Nd7 {[%emt 0:07:58]} 27. g4 {[%emt 0:01:52]} f6 {[%emt 0:02:41]} 28. Kh2 {[%emt 0:00:32]} Nc5 {[%emt 0:01:05]} 29. Be3 {[%emt 0:00:27]} Na4 {[%emt 0:00:08]} 30. Bxb6 {[%emt 0:02:23]} Nxb6 {[%emt 0:00:14]} 31. Ne3 {[%emt 0:02:08]} Qd7 {[%emt 0:01:23]} 32. Qd1 {[%emt 0:05:54]} a4 {[%emt 0:01:18]} 33. Qf3 {[%emt 0:03:14]} Rf8 {[%emt 0:00:40]} 34. Qf5+ {[%emt 0:00:12]} Qxf5 {[%emt 0:00:07]} 35. gxf5 {[%emt 0:00:03]} Ra8 {[%emt 0:01:58]} 36. a3 {[%emt 0:00:21]} Rfc8 {[%emt 0:00:41]} 37. d4 {[%emt 0:00:24]} Ra6 {[%emt 0:01:24]} 38. Kg3 {[%emt 0:00:16]} Kg8 {[%emt 0:00:20]} 39. f4 {[%emt 0:00:46]} exf4+ {[%emt 0:00:33]} 40. Kxf4 {[%emt 0:38:04]} Kf7 41. Kf3 {[%emt 0:00:00]} Re8 {[%emt 0:01:03]} 42. R5b4 {[%emt 0:00:00]} Ra5 {[%emt 0:01:04]} 43. Ng2 {[%emt 0:00:00]} g6 {[%emt 0:00:46]} 44. fxg6+ Kxg6 {[%emt 0:00:02]} 45. Ne3 {[%emt 0:00:00]} Rg8 {[%emt 0:01:19]} 46. Nf5 {[%emt 0:00:00]} Kh7 {[%emt 0:00:07]} 47. Nxd6 {[%emt 0:00:00]} cxd6 {[%emt 0:00:29]} 48. Rxb6 {[%emt 0:00:00]} Rh5 {[%emt 0:00:05]} 49. Rxb7+ {[%emt 0:00:00]} Kh8 {[%emt 0:00:08]} 50. Rh1 {[%emt 0:00:00]} Rc8 {[%emt 0:00:23]} 51. c5 {[%emt 0:00:00]} dxc5 {[%emt 0:00:05]} 52. Kg4 {[%emt 0:00:00]} 1-0

[Event "1st Jeddah Young Masters 2024"]
[Site "Jeddah"]
[Date "2024.01.24"]
[Round "1.5"]
[White "Erdogmus, Yagiz Kaan"]
[Black "Woodward, Andy"]
[Result "1-0"]
[ECO "D00"]
[WhiteElo "2524"]
[BlackElo "2501"]
[Annotator "RC"]
[PlyCount "39"]
[EventDate "2024.01.24"]
[EventType "tourn"]
[SourceTitle "playchess.com"]
[Source "ChessBase"]
[SourceQuality "1"]
[TimeControl "5400+30"]

1. d4 {[%emt 0:00:08]} Nf6 {[%emt 0:00:24]} 2. Bg5 {[%emt 0:00:15]} d5 {[%emt 0:01:06]} 3. Nd2 {[%emt 0:00:45]} g6 {[%emt 0:07:41]} 4. Bxf6 {[%emt 0:06:06]} exf6 {[%emt 0:00:12]} 5. e3 {[%emt 0:02:45]} Bd6 {[%emt 0:10:13]} 6. c4 {[%emt 0:07:00]} dxc4 {[%emt 0:04:02]} 7. Bxc4 {[%emt 0:01:38]} O-O {[%emt 0:01:23]} 8. Ngf3 {[%emt 0:01:40]} a6 {[%emt 0:01:06]} 9. O-O {[%emt 0:01:50]} b5 {[%emt 0:07:03]} 10. Bd3 {[%emt 0:20:27]} Bb7 {[%emt 0:15:25]} 11. a4 {[%emt 0:13:01]} bxa4 {[%emt 0:03:24]} 12. Rxa4 {[%emt 0:01:43]} c5 {[%emt 0:07:51]} 13. Be4 {[%emt 0:03:01]} Ra7 {[%emt 0:03:38]} 14. Qc2 {[%emt 0:18:03]} cxd4 {[%emt 0:13:52]} 15. Rxd4 {[%emt 0:00:07]} Qe7 {[%emt 0:00:13]} 16. Rd1 {[%emt 0:07:19]} Rc8 {[%emt 0:04:48]} 17. Nc4 {[%emt 0:03:06]} Bc5 {[%emt 0:03:33]} 18. Bxb7 {[%emt 0:00:25]} Rxb7 {[%emt 0:00:08]} 19. Nd6 {[%emt 0:01:46]} Rcc7 {[%emt 0:02:59]} 20. Nf5 {[%emt 0:02:43]} 1-0

[Event "1st Jeddah Young Masters 2024"]
[Site "Jeddah"]
[Date "2024.01.25"]
[Round "2.1"]
[White "Murzin, Volodar"]
[Black "Woodward, Andy"]
[Result "1-0"]
[ECO "B50"]
[WhiteElo "2635"]
[BlackElo "2501"]
[Annotator "TA"]
[PlyCount "85"]
[EventDate "2024.01.24"]
[EventType "tourn"]
[SourceTitle "playchess.com"]
[Source "ChessBase"]
[SourceQuality "1"]
[TimeControl "5400+30"]

{[%evp 9,85,-2,3,0,6,3,7,11,20,15,16,17,24,14,20,20,25,14,20,0,0,0,24,0,56,54,222,218,196,179,152,124,107,121,167,154,161,148,145,93,101,87,93,105,133,116,126,119,120,95,346,335,295,335,355,301,708,642,735,716,737,744,744,730,1181,1008,1181,1146,1065,793,29991,29992,29993,29994,29994,29995,29995,29995]} 1. e4 {[%emt 0:00:03]} c5 {[%emt 0:00:13]} 2. Nf3 {[%emt 0:00:04]} d6 {[%emt 0:00:12]} 3. Bc4 {[%emt 0:00:07]} Nf6 {[%emt 0:02:25]} 4. d3 {[%emt 0:00:08]} Nc6 {[%emt 0:06:44][%cal Bb8c6,Bc6e5,Be5c4][%mdl 32]} 5. O-O {[%emt 0:00:21]} g6 {[%emt 0:11:25]} 6. Re1 {[%emt 0:01:30]} Bg7 {[%emt 0:05:19]} 7. c3 {[%emt 0:00:38]} O-O {[%emt 0:00:47]} 8. a4 {[%emt 0:00:06] Die Stellung ist ausgeglichen.} Bg4 {[%emt 0:01:17]} 9. Nbd2 {[%emt 0:00:23]} Ne5 {[%emt 0:17:13]} 10. h3 {[%emt 0:00:16][%cal Bh2h3,Bh3g4,Bg4g5][%mdl 32]} Nxc4 {[%emt 0:01:03]} 11. hxg4 {[%emt 0:00:07]} Na5 {[%emt 0:08:42]} 12. g5 {[%emt 0:15:02]} Nd7 {[%emt 0:00:51]} 13. g3 {[%emt 0:03:26]} a6 {[%emt 0:09:20]} 14. Kg2 {[%emt 0:00:58]} b5 {[%emt 0:00:36]} 15. Rh1 {[%emt 0:01:30]} Ne5 {[%emt 0:06:09]} 16. Ne1 {[%emt 0:20:02]} d5 {[%emt 0:05:41]} (16... Qc8 $11) 17. f4 $14 {[%emt 0:03:04][%cal Bf2f4,Bf4e5][%mdl 32]} dxe4 $2 {[%emt 0:02:51]} (17... Nd7 $14) 18. fxe5 $18 {[%emt 0:09:03]} exd3 {[%emt 0:00:10]} 19. Qf3 {[%emt 0:01:26] Es drohte Nc6} c4 {[%emt 0:00:51]} 20. b4 {[%emt 0:06:10]} cxb3 {[%emt 0:10:22]} 21. Nxd3 {[%emt 0:02:15] Weiß steht aktiver.} Rc8 {[%emt 0:00:16]} (21... Rb8 $16) 22. Ne4 {[%emt 0:00:11]} Nc4 {[%emt 0:01:40]} 23. axb5 {[%emt 0:14:18]} axb5 {[%emt 0:00:35][%cal Oc8a8]} 24. Bf4 {[%emt 0:00:43]} (24. Rb1 $142) 24... Ra8 $16 {[%emt 0:02:20]} 25. Rab1 {[%emt 0:02:10]} Ra2+ {[%emt 0:01:57]} 26. Nef2 {[%emt 0:03:39]} b2 {[%emt 0:00:58]} 27. Nb4 {[%emt 0:00:54]} Ra3 {[%emt 0:00:14][%cal Od8a8]} 28. Ne4 {[%emt 0:02:55]} Qa8 {[%emt 0:02:24][%cal Of8c8]} 29. Nd5 {[%emt 0:04:42]} Qxd5 {[%emt 0:00:50][%mdl 8192] [#]} (29... Rd8 $16 {ist eine bessere Verteidigung.} 30. Nxe7+ Kf8) 30. Nf6+ $1 $18 {[%emt 0:00:04][%mdl 512]} exf6 {[%emt 0:00:05]} 31. Qxd5 {[%emt 0:00:02]} fxe5 {[%emt 0:00:09] [#]} 32. Bd2 {[%emt 0:00:52]} (32. Qxb5 Rxc3 33. Bc1 bxc1=N (33... Rxc1 34. Rbxc1 Ne3+ 35. Kh3 $14) 34. Rbxc1 (34. Rhxc1 Na3 $11) 34... Rxc1 35. Rxc1 Ne3+ 36. Kh3 Nf5 $16) 32... Rxc3 $2 {[%emt 0:01:58]} (32... Raa8) 33. Rxb2 {[%emt 0:02:52]} e4 {[%emt 0:00:27] [#]} 34. Qxe4 {[%emt 0:03:46]} Nxb2 {[%emt 0:00:17]} (34... Ra3 35. Rc2) 35. Bxc3 {[%emt 0:00:12]} Bxc3 {[%emt 0:00:07]} 36. Qh4 {[%emt 0:00:02]} h5 {[%emt 0:00:53]} 37. gxh6 {[%emt 0:01:07] Und Rc1 würde nun gewinnen.} Re8 {[%emt 0:00:31]} 38. Rc1 {[%emt 0:01:33]} Be5 {[%emt 0:01:02]} 39. Rc5 {[%emt 0:00:08][%cal Oc5e5] jetzt Rxe5! und aus.} Nd3 {[%emt 0:00:31] [#]} 40. Rxe5 $1 {[%emt 0:00:22][%mdl 512] Weiß setzt Matt.} Rxe5 {[%emt 0:00:08]} (40... Rc8 41. Re7) 41. Qd8+ {[%emt 0:00:14]} Kh7 {[%emt 0:00:08]} 42. Qf8 {[%emt 0:00:03][%csl Gh6][%cal Rf8g7]} Ne1+ {[%emt 0:00:10]} 43. Kf1 {[%emt 0:00:13] Gewichteter Fehlerwert: Weiß=0.07 (makellos) /Schwarz=0.43.  Verlustzug:     	---       	Schwarz=2     Fehler:       	Weiß=1     	Schwarz=3     OK:         	Weiß=10    	Schwarz=13    Bester:       	Weiß=4     	Schwarz=3     Brilliant:      	Weiß=1     	---} 1-0